Cogmind - Beta 17 @@@ ROGUE MODE // 2026.06.27 @ 00:23:33 Player: Scottariah Result: Destroyed by Y-64 Sentinel with Wave Gun Performance ------------- Evolutions (5) 2500 Regions Visited (18) 3600 Robots Destroyed (313) 1565 Value Destroyed (13311) 13311 Prototype IDs (47) 940 Alien Tech Used (0) 0 Bonus (10875) 10875 TOTAL SCORE: 32791 Bonus ------- High Alert Combat Kills 1961 Follower Combat Kills 550 Prayed to X0-1V1 5000 Entered Garrisons 1000 Used RIF Installer 2500 Friendly Fire -136 Cogmind --------- Core Integrity 0/1000 Matter 299/300 Energy 340/340 System Corruption 11% Temperature Cool (9) Movement Walking (209) Ox1 Location -5/Garrison Parts ------- > --- POWER (2) -------- Fusion Compressor (fused) Particle Reactor (fused) > --- PROPULSION (4) --- Carbon-fiber Leg Light Armored Exoskeleton (fused) Flexi-carbon Leg > --- UTILITY (7) ------ Advanced Heat Sink Huge Storage Unit 0b10 Decoder Chip [Generic] (fused) Improved Target Analyzer Core Analyzer Self-contained Transmogrifier X0-1V1's Piety Tracker > --- WEAPON (4) ------- Advanced Assault Cannon (fused) Advanced Assault Cannon (fused) Heavy Flak Cannon (fused) Phasing Sabre (fused) > --- INVENTORY (25) --- Reinforced Deuterium Engine Reinforced Deuterium Engine Reinforced Fission Core Improved Treads Improved Treads Carbon-fiber Leg Gravity Neutralizer Advanced Trap Scanner Improved Phase Shifter Point Defense System Improved Hacking Suite Improved Hacking Suite Relay Coupler [Demolisher] (18) Relay Coupler [Heavy] (15) Improved Corruption Screen Coil Gun Coil Gun Heavy Machine Gun Improved Remote Datajack Improved Plasma Cutter Plasma Flamer Heavy Mace Thunder Hammer Falx Heavy Pick Peak State ------------ > --- POWER ------------ F-cell Engine Fusion Reactor > --- PROPULSION ------- Heavy Treads Improved Heavy Treads > --- UTILITY ---------- Huge Storage Unit Long-range Terrain Scanner Weapon Mount Medium Regenerative Plating Point Defense System Self-contained Transmogrifier X0-1V1's Piety Tracker > --- WEAPON ----------- KE Penetrator Mini Smartbomb Launcher Tiamat Missile Launcher Advanced Concussive RPG > --- INVENTORY -------- Hybrid Deuterium Engine Light Fission Core Armored Medium Treads Improved Heavy Treads Improved Heavy Treads Advanced Trap Scanner Core Analyzer Advanced Actuator Array Improved Phase Shifter Hardened Heavy Armor Plating Layered Heavy Armor Plating Graphene Brace Relay Coupler [NC] Relay Coupler [Demolisher] High-powered Tractor Beam Mass Driver Mass Driver Precision Rocket Launcher Precision Rocket Launcher Thunder Hammer Phasing Sabre [Rating: 128] Favorites ----------- Power F-cell Engine Engine F-cell Engine Power Core Light Nuclear Core Reactor Fusion Reactor Propulsion Light Treads Treads Light Treads Leg Light Armored Exoskeleton Wheel Armored Wheel Hover Unit Hover Unit Flight Unit Makeshift Flight Unit Utility Huge Storage Unit Device X0-1V1's Piety Tracker Storage Huge Storage Unit Processor Improved Target Analyzer Hackware Relay Coupler [NC] Protection Improved Medium Armor Plating Weapon Light Cannon Energy Gun Beamcaster Energy Cannon Disruptor Cannon Ballistic Gun Heavy Battle Rifle Ballistic Cannon Light Cannon Launcher Precision Rocket Launcher Special Weapon Remote Datajack Impact Weapon Thunder Hammer Slashing Weapon Scimitar of Distortion Piercing Weapon Heavy Pick Special Melee Weapon Dirty Datajack Build | -11 -10 -10 -8 -8 -8 -7 -7 -7 -7 -6 -6 -6 -6 -6 -6 -6 -5 -5 ------- Run | Yrd Mat Sub Mat Gar Sto Fac Gar Fac Gar Fac Was Fac Gar Fac Low Low Fac Gar Slots Evolved 10 | . . . 4 . . 2 . . . 2 . . . . . . 2 . Power 1 | . . . . . . . . . . . . . . . . . 1 . Propulsion 2 | . . . 1 . . 1 . . . . . . . . . . . . Utility 5 | . . . 3 . . . . . . 2 . . . . . . . . Weapon 2 | . . . . . . 1 . . . . . . . . . . 1 . Parts Attached 275 | 7 12 19 27 7 10 15 17 1 40 6 8 11 22 . 12 5 21 35 Power 24 | 1 2 3 . . 1 2 1 . 4 . 1 3 . . . . 1 5 Engine 11 | 1 1 3 . . 1 1 . . 2 . 1 1 . . . . . . Core 8 | . 1 . . . . 1 1 . 2 . . . . . . . . 3 Reactor 5 | . . . . . . . . . . . . 2 . . . . 1 2 Propulsion 49 | 2 1 6 5 1 2 5 3 . 9 1 1 . 2 . . 4 . 7 Treads 30 | 2 1 4 5 1 1 2 2 . 3 1 1 . 2 . . 4 . 1 Leg 16 | . . . . . 1 3 1 . 5 . . . . . . . . 6 Wheel 2 | . . 2 . . . . . . . . . . . . . . . . Hover 1 | . . . . . . . . . 1 . . . . . . . . . Flight . | . . . . . . . . . . . . . . . . . . . Utility 115 | 2 5 . 15 3 1 3 8 1 16 5 3 8 11 . 10 1 10 13 Device 60 | 1 2 . 6 . 1 2 2 1 10 5 . 2 9 . 6 . 6 7 Storage 4 | 1 2 . . . . . . . . . . . . . . . 1 . Processor 15 | . . . 2 1 . 1 . . . . 2 1 1 . . 1 2 4 Hackware 6 | . . . . . . . 2 . 3 . 1 . . . . . . . Protection 30 | . 1 . 7 2 . . 4 . 3 . . 5 1 . 4 . 1 2 Artifact . | . . . . . . . . . . . . . . . . . . . Weapon 87 | 2 4 10 7 3 6 5 5 . 11 . 3 . 9 . 2 . 10 10 Energy Gun 4 | 1 1 . . . . . 1 . . . . . 1 . . . . . Energy Cannon 1 | . . . . . 1 . . . . . . . . . . . . . Ballistic Gun 34 | 1 1 4 3 . 2 3 . . 7 . . . 3 . 2 . 3 5 Ballistic Cannon 18 | . 2 2 4 1 . 1 . . 1 . . . 2 . . . 5 . Launcher 7 | . . 2 . . 1 . 1 . . . 1 . . . . . . 2 Special Weapon 5 | . . 1 . . . . 1 . 2 . 1 . . . . . . . Impact Weapon 4 | . . 1 . . 1 . . . . . 1 . . . . . 1 . Slashing Weapon 9 | . . . . 2 1 1 1 . 1 . . . 1 . . . 1 1 Piercing Weapon 4 | . . . . . . . 1 . . . . . 1 . . . . 2 Special Melee Weapon 1 | . . . . . . . . . . . . . 1 . . . . . Unidentified Prototypes 5 | . 1 . 1 . . . . . . . . . . . 1 . 2 . Corrupted Parts 5 | . . . . . . . . . . . . . 2 . . 3 . . System Corruption 27 | . . . . . . . . . . . . . 12 . . 15 . . Parts Lost 79 | . 2 1 5 1 1 7 7 . 23 . . 1 4 . 4 . 3 20 Power 10 | . 1 1 . . 1 1 1 . 1 . . . . . . . . 4 Propulsion 20 | . . . 2 . . 1 3 . 8 . . . . . . . . 6 Utility 23 | . . . 1 1 . 2 1 . 8 . . 1 . . 2 . 1 6 Weapon 26 | . 1 . 2 . . 3 2 . 6 . . . 4 . 2 . 2 4 Highest Loss Streak 11 | . 1 1 1 1 1 4 3 . 11 . . 1 3 . 3 . 1 11 To Critical Strikes 1 | . . . . . . . . . . . . . . . . . . 1 Average Backups 21 | 3 18 22 23 24 24 20 21 22 22 22 21 20 20 18 17 17 20 21 Power 1 | . 2 1 1 1 . . . . . 2 2 2 1 1 1 1 1 . Propulsion 2 | 1 2 3 3 3 3 2 1 . . 2 2 1 2 4 3 3 2 2 Utility 10 | . 8 9 11 9 8 9 13 15 15 12 12 11 12 10 9 9 11 10 Weapon 6 | . 5 7 7 8 11 6 5 5 4 4 3 3 2 3 2 2 4 6 Tool/Special . | . . . . . . . . . . . . . . . . . . . Unused Backups 268 | . 3 83 40 10 12 7 19 . 13 . 5 10 19 1 10 4 10 22 Power 12 | . . 4 1 1 . . 1 . . . 1 . . 1 . . 2 1 Propulsion 57 | . . 13 5 3 4 . 4 . 4 . 2 2 6 . 2 3 3 6 Utility 86 | . 2 23 14 4 1 3 8 . 3 . 1 2 8 . 2 1 5 9 Weapon 108 | . 1 41 20 2 7 4 6 . 6 . 1 6 4 . 6 . . 4 Tool/Special 5 | . . 2 . . . . . . . . . . 1 . . . . 2 Average Slot Usage (%) 94 | . 99 99 98 97 93 89 94 92 90 92 91 84 94 91 85 82 88 89 Engine 4 | . 3 9 7 9 3 1 . . 2 6 5 4 . . . . 4 . Core 3 | . 10 4 1 . 5 5 6 7 3 . . . . . . . . 4 Reactor 1 | . . . . . . . . . . . . . 6 6 6 6 5 4 Treads 19 | . 27 24 25 25 21 4 26 23 16 . . 8 21 18 16 12 14 5 Leg 2 | . . . . . 2 16 . . 6 20 17 5 . . . . . 12 Device 21 | . 13 14 22 24 19 26 23 30 23 38 25 25 32 33 23 27 27 15 Storage 9 | . 14 14 9 9 9 7 7 7 7 6 6 6 9 13 6 6 5 5 Processor 3 | . . . 6 6 10 3 1 . . . 6 2 . . 1 6 3 12 Protection 3 | . . . 6 5 5 . 3 . 5 1 . 6 3 . 9 2 3 2 Energy Gun 3 | . 4 6 7 6 . . 1 5 3 . 3 . 3 . . . 1 . Ballistic Gun 6 | . 13 4 9 . 5 14 . 3 9 6 1 7 4 15 11 5 2 9 Ballistic Cannon 4 | . 10 14 . 2 2 2 . . 1 . . . 4 . . . 2 3 Launcher 1 | . . . . . . 2 7 . 1 . 3 6 . . 3 12 6 1 Slashing Weapon 1 | . . . . 5 2 2 1 7 1 6 6 . . 4 2 . 3 5 Peak Build Rating 128 | 7 24 38 67 71 72 81 83 82 81 87 91 99 109 114 111 113 128 117 Average Rating 66 | 5 11 26 61 67 67 73 77 80 67 85 85 94 99 111 107 109 120 98 On Entrance 73 | . 7 24 38 67 65 69 73 78 81 73 87 91 98 110 114 109 95 117 Avg Prop Armor Cover (%) 8 | . . 11 4 1 12 9 4 . 5 . 11 7 1 . . . 7 . Naked Turns . | . . . . . . . . . . . . . . . . . . . Heaviest Build 184 | 15 92 101 114 122 112 116 133 125 137 110 124 149 157 140 139 139 184 152 Greatest Support 150 | 40 40 48 98 88 88 96 120 112 112 65 70 116 150 150 145 145 145 130 Greatest Overweight (x) 42 | . 2 8 2 1 3 5 6 1 33 1 1 2 2 1 . 1 1 42 Average Overweight (x) 1 | . 1 3 1 1 1 1 . 1 1 1 1 1 . . . . . 1 Largest Inventory Capacity 25 | 8 25 25 25 25 25 25 25 25 25 25 25 25 25 25 25 25 25 25 Average Capacity 24 | 7 21 25 25 25 25 25 25 25 25 25 25 25 25 25 25 25 25 25 Most Carried 25 | 6 25 25 25 25 25 25 25 25 25 25 25 25 25 25 25 25 25 25 Average Carried 23 | 3 18 24 24 24 24 24 24 24 24 24 24 24 24 24 24 23 23 23 Final Capacity 25 | 8 25 25 25 25 25 25 25 25 25 25 25 25 25 25 25 25 25 25 Final Carried 25 | 6 25 23 25 25 25 23 25 24 25 25 25 25 25 25 25 22 25 25 Transmogrified Parts 216 | . . 13 35 9 11 14 20 5 23 1 8 21 14 6 8 3 11 14 Integrity Recovered 4258 | . . 130 819 109 271 302 697 52 653 . 54 254 158 109 163 14 219 254 Class Distribution -------------------- 59% | Mutant 11% | Bothacker-Mutant 8% | Tank 6% | Bothacker-Tank 5% | Gunner Dominant Class ---------------- Mutant | -10/Materials Mutant | -10/Subcaves Mutant | -8/Materials Mutant | -8/Garrison Mutant | -8/Storage Gunner | -7/Factory Mutant | -7/Garrison Bothacker-Mutant | -7/Factory Bothacker-Tank | -7/Garrison Bothacker-Mutant | -6/Factory Bothacker-Mutant | -6/Waste Bothacker-Tank | -6/Factory Mutant | -6/Garrison Mutant | -6/Factory Tank | -6/Lower Caves Tank | -6/Lower Caves Tank | -5/Factory Scavenger-Gunner | -5/Garrison Resources | -11 -10 -10 -8 -8 -8 -7 -7 -7 -7 -6 -6 -6 -6 -6 -6 -6 -5 -5 ----------- Run | Yrd Mat Sub Mat Gar Sto Fac Gar Fac Gar Fac Was Fac Gar Fac Low Low Fac Gar Matter Collected 11303 | 294 418 705 1164 355 737 908 745 27 1557 . 428 271 1043 . 582 227 414 1428 Remotely 741 | . . . . . . . . . . . . . 151 . 148 . . 442 Salvage Created 14516 | 127 414 539 1975 466 1093 1173 1625 87 1232 . 1089 437 1173 . 778 . 759 1549 Parts 681 | 9 25 39 123 32 72 51 73 3 63 . 13 21 47 . 23 . 28 59 Haulers Intercepted 17 | . 1 . 6 . 6 1 . . . . . 1 . . 1 . 1 . Recyclers Shooed 13 | . 1 . 2 . 2 2 . . . . . 4 . . . . 2 . Parts Field Recycled . | . . . . . . . . . . . . . . . . . . . Retrieved Matter . | . . . . . . . . . . . . . . . . . . . Parts Self-Destructed 30 | . . 8 . . . . . . . . . . . . 21 1 . . Prevented 3 | . . . . . . . . . . . . . . . 1 2 . . Parts Restored . | . . . . . . . . . . . . . . . . . . . Kills | -11 -10 -10 -8 -8 -8 -7 -7 -7 -7 -6 -6 -6 -6 -6 -6 -6 -5 -5 ------- Run | Yrd Mat Sub Mat Gar Sto Fac Gar Fac Gar Fac Was Fac Gar Fac Low Low Fac Gar Combat Hostiles Destroyed 262 | . 13 18 41 14 19 21 27 . 30 . 4 7 15 . 12 1 9 31 Melee 40 | . . . . 8 3 2 12 . 2 . 1 1 . . 3 . 1 7 Guns 125 | . 12 6 29 1 4 15 . . 24 . . 2 7 . 8 . 5 12 Cannons 53 | . 1 6 12 5 12 4 . . 3 . . . 2 . . . 1 7 AOE 39 | . . 6 . . . . 13 . 1 . 3 4 6 . . 1 2 3 Classes Destroyed 22 | 2 6 2 3 1 . 3 1 . 2 . 1 . . . . . . 1 Worker 5 | . 1 . . . 3 1 . . . . . . . . . . . . Builder 3 | . . . 1 . 1 . . . . . . . . . . . 1 . Tunneler 3 | 3 . . . . . . . . . . . . . . . . . . Hauler 17 | . 1 . 6 . 6 1 . . . . . 1 . . 1 . 1 . Recycler 9 | 1 . . . . . 4 . 1 . . . 1 . . . . 2 . Mechanic 1 | . . . . . . 1 . . . . . . . . . . . . Operator 5 | . 1 . 1 . 1 . 1 . . . . . . . . . 1 . Turret 2 | . . 2 . . . . . . . . . . . . . . . . Watcher 5 | . . . 3 . 1 . . . . . . 1 . . . . . . Swarmer 65 | . 6 4 8 7 2 8 10 . 4 . . 3 3 . 3 . 4 3 Cutter 3 | . . . . . . . . . . . . . . . . . . 3 Grunt 93 | . 6 . 24 5 7 8 6 . 7 . . . 8 . 5 . 1 16 Brawler 5 | . . . . . . 1 1 . 1 . . . . . 1 . . 1 Duelist 3 | . . . . 1 . . . . . . . . . . 2 . . . Sentry 43 | . . 1 8 1 10 3 6 . 6 . . . 3 . 1 . . 4 Specialist 5 | . . . . . . . . . 3 . . . . . . . 2 . Hunter 9 | . . . . . . . . . 3 . . 2 . . . . 2 2 Programmer 14 | . . . . . . 1 3 . 5 . . 2 1 . . . . 2 Heavy 1 | . . . 1 . . . . . . . . . . . . . . . Behemoth 2 | . . . . . . . 1 . . . . . . . . 1 . . Compactor 4 | . . . . . . . . . . . 4 . . . . . . . Subdweller 14 | . 1 13 . . . . . . . . . . . . . . . . Thug 1 | . . . . . . . . . . . . . 1 . . . . . Guerrilla 1 | . . . . . . . . . 1 . . . . . . . . . Best Kill Streak 10 | 4 3 6 10 4 4 7 6 1 5 . 1 3 6 . 7 1 3 5 Combat Bots Only 8 | . 3 4 8 4 3 6 6 . 5 . 1 3 6 . 7 1 3 5 Max Kills in Single Turn 2 | 2 1 2 2 1 2 2 2 1 2 . 1 2 2 . 2 1 1 2 Gunslinging 1 | . . . 1 . . . . . 1 . . . . . 1 . . . Exploded 2 | . . 2 . . . . 2 . 1 . 1 2 2 . . 1 1 2 Melee 1 | . . . . 1 1 1 1 . 1 . 1 1 . . 1 . 1 1 Uniques/NPCs Destroyed . | . . . . . . . . . . . . . . . . . . . Combat | -11 -10 -10 -8 -8 -8 -7 -7 -7 -7 -6 -6 -6 -6 -6 -6 -6 -5 -5 -------- Run | Yrd Mat Sub Mat Gar Sto Fac Gar Fac Gar Fac Was Fac Gar Fac Low Low Fac Gar Hostile Shots Fired 2620 | . 75 78 210 54 102 205 330 4 579 . . 61 265 . 127 27 72 431 Missed 705 | . 14 21 52 12 29 48 111 3 169 . . 14 83 . 27 12 19 91 Hits 1915 | . 61 57 158 42 73 157 219 1 410 . . 47 182 . 100 15 53 340 Melee 35 | . . . . . . 4 . . 4 . . . . . 16 . . 11 Projectile 1880 | . 61 57 158 42 73 153 219 1 406 . . 47 182 . 84 15 53 329 AOE 5 | . . . . . . . . . . . . . 1 . 1 . 1 2 Critical Strikes 85 | . 1 1 10 1 8 7 . . 14 . . 1 9 . 9 . . 24 Actively Blocked 1 | . . . . . 1 . . . . . . . . . . . . . Part Disruptions 4 | . . . . . . . . . . . . . . . . . 4 . Damage Taken 28593 | . 709 1087 2664 384 1011 1946 2873 15 4980 . 44 606 1648 . 2128 255 1650 6593 Core 3334 | . 77 151 278 63 175 291 342 . 565 . 35 65 155 . 63 52 283 739 Absorbed by Shields 2353 | . . . . . 12 373 358 14 94 . . 170 1087 . 215 . . 30 Reduced by Siege Mode 82 | . . . . . . . . . . . . . . . 22 . . 60 Redirected to Shielding 329 | . 13 . . . 31 . . . 64 . . 13 98 . 110 . . . Ignored by Resistances 93 | . . . . 24 18 . . . 51 . . . . . . . . . Regen/Repaired (Parts) 522 | . 178 . . . 107 . . . . . . 129 . . . . 108 . Core Remaining (%) 55 | 100 . 8 . . 53 . . . 30 . . . . . . 86 . . Volleys Fired 939 | 8 50 71 136 53 94 73 36 . 145 . 22 41 63 . 29 9 41 68 Largest 4 | 2 2 2 2 2 2 3 3 . 3 . 1 2 3 . 3 2 2 4 Hottest 225 | 70 85 116 225 225 160 89 119 . 150 . 55 114 157 . 90 79 121 146 Shots Fired 1564 | 16 100 113 260 55 122 154 47 1 227 . 22 46 103 1 69 9 53 166 Gun 1044 | 16 94 45 204 17 38 131 . 1 171 . 1 30 71 1 69 1 45 109 Cannon 381 | . 6 44 56 38 83 19 5 . 44 . . 6 25 . . . 6 49 Launcher 104 | . . 10 . . 1 4 37 . 7 . 11 9 7 . . 8 2 8 Special 35 | . . 14 . . . . 5 . 5 . 10 1 . . . . . . Kinetic 1229 | 8 94 74 228 38 93 150 5 . 180 . . 30 70 1 69 1 31 157 Thermal 173 | 8 6 25 32 17 28 . . 1 34 . 1 . . . . . 20 1 Explosive 68 | . . 4 . . 1 4 7 . 7 . 11 9 7 . . 8 2 8 Electromagnetic 73 | . . 10 . . . . 30 . 1 . . 6 26 . . . . . Robot Hit Streak 32 | 5 29 14 32 15 10 9 14 15 9 . 9 15 19 . 10 3 13 7 Robot Miss Streak 7 | 1 5 2 6 1 3 5 4 . 5 . 1 3 4 . 2 . 3 7 Penetration Max 2 | . . . . . 1 2 . . 1 . . . 1 . 1 . 1 . Secondary Targets 19 | . 2 . 6 . 1 1 . . 4 . . . 1 . 2 . . 2 Max Gunslinging Chain 1 | . 1 . 1 . 1 1 . . 1 . . . 1 . 1 . . 1 Shots Hit Robots 1223 | 9 69 66 207 60 77 95 108 1 150 . 36 35 85 . 61 3 44 117 Core Hits 592 | 5 26 35 83 20 33 52 65 1 75 . 8 21 50 . 27 4 23 64 Critical Kills 14 | . . . . . 2 5 . . 4 . . . 1 . . . 1 1 Critical Parts Destroyed 17 | . . . . . . 7 . . 6 . . . 1 . 1 . 2 . Critical Strikes 74 | . . 3 2 3 11 19 8 . 11 . . . 4 . 1 . 5 7 Burn 2 | . . . 1 . . . . . . . . . . . . . 1 . Destroy 30 | . . 1 . . 2 12 . . 9 . . . 2 . 1 . 2 1 Blast 24 | . . 2 1 3 9 5 . . . . . . 2 . . . . 2 Smash 3 | . . . . . . . . . 2 . . . . . . . 1 . Sever 7 | . . . . . . 2 . . . . . . . . . . 1 4 Impale 8 | . . . . . . . 8 . . . . . . . . . . . Melee Attacks 367 | . . 13 . 59 15 7 121 . 26 . 20 . 14 . 15 . 10 67 Impact 25 | . . 6 . . 3 . . . 8 . . . . . . . 3 5 Slashing 202 | . . . . 58 12 7 1 . 18 . 20 . 4 . 15 . 7 60 Piercing 140 | . . 7 . 1 . . 120 . . . . . 10 . . . . 2 Sneak Attacks 33 | . . . . 1 4 . 1 . . . 20 . 4 . . . 3 . Combat Hostiles 25 | . . . . 1 . . . . . . 20 . 4 . . . . . Follow-up Attacks 13 | . . . . . . . 5 . . . . . . . . . 1 7 Damage Inflicted 38188 | 125 911 1776 4484 2331 3271 2432 5427 22 3426 . 2168 1307 2839 . 1460 359 1489 4361 Guns 14417 | 125 825 554 3316 170 491 1299 . 22 2520 . 18 556 1252 . 1098 . 772 1399 Cannons 7260 | . 86 528 1151 963 2287 468 29 . 397 . . 103 484 . . . 111 653 Explosions 7591 | . . 694 . . . 504 1989 . 263 . 1412 619 1076 . 12 359 173 490 Melee 8860 | . . . . 1198 493 161 3409 . 232 . 738 . 27 . 350 . 433 1819 Ramming 60 | . . . 17 . . . . . 14 . . 29 . . . . . . Kinetic 18967 | 74 819 1332 3817 963 2459 1767 29 . 2251 . . 556 1248 . 1098 . 524 2030 Thermal 2680 | 51 92 168 650 170 319 . 164 22 645 . 18 . . . . . 359 22 Explosive 6097 | . . 203 . . . 504 986 . 263 . 1412 619 1076 . 12 359 173 490 Electromagnetic 1524 | . . 73 . . . . 839 . 21 . . 103 488 . . . . . Impact 590 | . . . . . . . . . 232 . . . . . . . 187 171 Slashing 4798 | . . . . 1198 493 161 27 . . . 738 . . . 350 . 246 1585 Piercing 3472 | . . . . . . . 3382 . . . . . 27 . . . . 63 Highest Corruption 61 | . . . . . . 4 13 13 28 . 46 46 46 46 46 61 2 11 Average Corruption 22 | . . . . . . 3 9 12 17 . 25 36 41 46 46 46 1 9 Corruption Purged 20 | . . . . . . . . 1 . . . 12 7 . . . . . Corruption Blocked . | . . . . . . . . . . . . . . . . . . . Effects 530 | . . . . . . 7 78 6 114 . 31 72 79 13 63 14 2 51 Message Errors 126 | . . . . . . 3 24 . 21 . 6 23 15 2 12 6 . 14 Matter Fused 128 | . . . . . . . 16 3 24 . 10 18 22 5 7 5 1 17 Heat Flow Errors 49 | . . . . . . 3 5 . 12 . 2 4 9 2 9 . . 3 Energy Discharges 54 | . . . . . . . 5 . 16 . 5 8 9 . 7 . . 4 Parts Rejected 4 | . . . . . . . . . 1 . . 2 . . 1 . . . Parts Fused 8 | . . . . . . . 1 . 2 . 1 1 1 . . . . 2 Data Loss (minor) 61 | . . . . . . 1 11 1 12 . 2 7 9 3 7 1 1 6 Data Loss (major) 22 | . . . . . . . 7 . 6 . 1 2 1 . 4 . . 1 Misfires 20 | . . . . . . . 4 1 8 . . . 2 1 3 . . 1 Alerts 16 | . . . . . . . 4 1 4 . 1 . 3 . 1 . . 2 Misdirections 8 | . . . . . . . 1 . 1 . 3 2 . . . 1 . . Weapon Failures 34 | . . . . . . . . . 7 . . 5 8 . 12 1 . 1 Overload Shots 22 | . . . 1 13 . . . . 8 . . . . . . . . . Overflow Damage 827 | . . 33 21 91 195 62 96 . 82 . . 15 16 . . . 125 91 Projectiles 197 | . . . 21 . 143 29 . . . . . . 4 . . . . . Explosions 149 | . . 33 . . . 18 12 . . . . 15 12 . . . . 59 Melee 481 | . . . . 91 52 15 84 . 82 . . . . . . . 125 32 Knockbacks 46 | . . 8 18 1 7 5 . . . . . . 1 . . . 3 3 Impact 1 | . . . . . . . . . . . . . . . . . 1 . Kinetic 39 | . . 8 13 1 6 5 . . . . . . 1 . . . 2 3 Secondary 6 | . . . 5 . 1 . . . . . . . . . . . . . Self-Inflicted Damage 1191 | . . 69 . . . 176 634 . 33 . 44 46 29 . 35 . 53 72 Shots 45 | . . 2 . . . 2 32 . 1 . 2 1 1 . 1 . 1 2 Rammed 8 | . 1 . 2 . . . . . 1 . . 4 . . . . . . Targets Rammed 9 | . 1 . 2 . . . . . 2 . . 4 . . . . . . Kicked . | . . . . . . . . . . . . . . . . . . . Crushed 1 | . . . . . . . . . 1 . . . . . . . . . Highest Temperature 554 | 45 48 36 392 171 225 108 287 35 197 . 203 260 554 267 446 148 208 429 Average Temperature 81 | 20 18 10 86 49 38 37 109 24 57 . 91 65 133 134 120 79 65 135 Received Heat Transfer 6776 | . 297 153 1053 90 516 460 397 4 927 . . . 611 . 374 . 48 1846 Effects 16 | . . . 1 . . . 2 . . . . . 4 . 6 . . 3 Shutdowns 4 | . . . . . . . . . . . . . 2 . 1 . . 1 Energy Bleed 3 | . . . . . . . . . . . . . 1 . 2 . . . Interference 6 | . . . . . . . 2 . . . . . . . 2 . . 2 Matter Decay 1 | . . . . . . . . . . . . . 1 . . . . . Short Circuit 1 | . . . 1 . . . . . . . . . . . . . . . Damage (minor) 1 | . . . . . . . . . . . . . . . 1 . . . Siege Activations 2 | . . . . . . . . . . . . . . . 1 . . 1 Total Turns 47 | . . . . . . . . . . . . . . . 30 . . 17 Longest Duration 30 | . . . . . . . . . . . . . . . 30 . . 17 Martial Activations . | . . . . . . . . . . . . . . . . . . . Shielding Activations . | . . . . . . . . . . . . . . . . . . . Robots Disrupted 2 | . . 1 . . . . . . . . . 1 . . . . . . Combat Hostiles 1 | . . 1 . . . . . . . . . . . . . . . . Robots Corrupted 9 | . . . . . . . 2 . . . . . 4 . . . 1 2 Combat Hostiles 4 | . . . . . . . 2 . . . . . . . . . . 2 Parts Fried 13 | . . . . . . . 3 . . . . . 7 . . . . 3 Impact Corruptions 10 | . . . . . . . . . 2 . . . . . . . 5 3 Robots Melted . | . . . . . . . . . . . . . . . . . . . Combat Hostiles . | . . . . . . . . . . . . . . . . . . . Parts Melted 6 | . . 1 . . 3 . . . 1 . . . . . . . 1 . Heat Transferred 4194 | 148 222 259 851 211 574 . 100 50 1100 . 37 . . . . . 592 50 Parts Sabotaged . | . . . . . . . . . . . . . . . . . . . Parts Stolen . | . . . . . . . . . . . . . . . . . . . Parts Stripped 12 | . . . . . 4 . . . . . . . . . 8 . . . Power Chain Reactions 4 | . . . . . . . 4 . . . . . . . . . . . Alert | -11 -10 -10 -8 -8 -8 -7 -7 -7 -7 -6 -6 -6 -6 -6 -6 -6 -5 -5 ------- Run | Yrd Mat Sub Mat Gar Sto Fac Gar Fac Gar Fac Was Fac Gar Fac Low Low Fac Gar Maximum Alert Level 5 | . . . 2 3 2 2 5 3 5 3 1 . 2 1 . . . 2 Low Security (%) 38 | 100 100 . 23 . . 52 . . . . 89 100 9 . . . 100 65 Level 1 23 | . . . 33 5 87 38 7 . . . 10 . 62 100 . . . 23 Level 2 15 | . . . 42 69 12 8 10 . . . . . 27 . . . . 11 Level 3 10 | . . . . 25 . . 32 100 39 100 . . . . . . . . Level 4 10 | . . . . . . . 41 . 58 . . . . . . . . . Level 5 1 | . . . . . . . 8 . 2 . . . . . . . . . High Security . | . . . . . . . . . . . . . . . . . . . Max Security . | . . . . . . . . . . . . . . . . . . . Peak Influence 1768 | 15 166 . 595 850 516 428 1768 1086 1612 846 247 79 683 358 . . 72 444 Initial 928 | . . . 31 383 414 149 262 928 753 846 247 21 . 358 . . . 25 Average 428 | 2 26 . 339 619 340 212 1069 938 1176 787 119 12 349 304 . . 11 178 Influence Increases 8941 | 20 416 215 1241 477 687 729 1636 228 1209 . 65 222 733 . 156 27 261 619 Destroy 0b10 Robot/C 4553 | . 240 140 820 280 380 420 580 120 610 . . 105 222 . 144 12 108 372 Destroy 0b10 Robot/NC 282 | 20 15 . 55 10 60 35 30 5 . . . 12 16 . 3 . 15 6 Destroy Leader 726 | . 52 . 198 30 144 92 30 30 38 . . 34 22 . . 6 20 30 Allied During Kill 96 | . . . . . . . 9 55 26 . . 1 5 . . . . . Trap Triggered on 0b10 20 | . . . 10 . . . 10 . . . . . . . . . . . Successful Hack 174 | . 33 . 55 14 8 5 35 . 6 . . 12 . . . . 6 . Disable Machine 312 | . 15 . 30 15 30 30 90 15 15 . . 24 12 . . . 36 . Anti-Garrison Action 1423 | . . . . 50 . . 550 . 388 . . . 345 . . . . 90 Destroy Structure 866 | . 1 . 13 48 50 72 227 3 90 . 65 34 75 . . . 76 112 Partial Spotted 30 | . . . 15 . . 15 . . . . . . . . . . . . Lose Combat Pursuer 459 | . 60 75 45 30 15 60 75 . 36 . . . 36 . 9 9 . 9 Influence Decreases 8497 | 20 416 153 713 217 1208 683 243 920 673 906 741 252 50 435 404 27 225 211 Entered New Map 3793 | . . . 31 207 436 180 113 840 323 766 459 9 . 325 93 . . 11 Time Decay 3564 | 20 406 153 632 . 612 433 . 80 . 120 262 233 . 110 271 27 205 . Lost Part 750 | . 10 . 50 10 10 70 70 . 230 . . 10 40 . 40 . 10 200 Lost Ally 240 | . . . . . . . 60 . 120 20 20 . 10 . . . 10 . Purge Threat 150 | . . . . . 150 . . . . . . . . . . . . . Squads Dispatched 24 | . 2 . 4 . 1 6 . 2 . . . 3 . . . . 6 . Investigation 2 | . 1 . 1 . . . . . . . . . . . . . . . Extermination 5 | . . . . . . 1 . . . . . 2 . . . . 2 . Reinforcement 12 | . 1 . 3 . 1 1 . 1 . . . 1 . . . . 4 . Assault . | . . . . . . . . . . . . . . . . . . . Garrison 5 | . . . . . . 4 . 1 . . . . . . . . . . Intercept . | . . . . . . . . . . . . . . . . . . . Searches Triggered . | . . . . . . . . . . . . . . . . . . . Construction Impeded 2 | . . . . . . . . . . . . 1 . . . . 1 . Haulers Reinforced . | . . . . . . . . . . . . . . . . . . . Active Scanning Responses . | . . . . . . . . . . . . . . . . . . . Cargo Convoy Interrupts . | . . . . . . . . . . . . . . . . . . . Stealth | -11 -10 -10 -8 -8 -8 -7 -7 -7 -7 -6 -6 -6 -6 -6 -6 -6 -5 -5 --------- Run | Yrd Mat Sub Mat Gar Sto Fac Gar Fac Gar Fac Was Fac Gar Fac Low Low Fac Gar Distress Signals 24 | . 5 . 8 . 2 6 . . . . . . . . . 1 2 . Communications Jammed . | . . . . . . . . . . . . . . . . . . . Distress Signals . | . . . . . . . . . . . . . . . . . . . Times Spotted 367 | . 22 19 63 17 32 31 33 4 40 . 6 9 24 . 14 2 18 33 Peak Tracking Total 9 | . 9 5 7 4 3 5 7 2 6 . 4 3 7 . 7 2 4 6 Tactical Retreats 21 | . 1 1 3 2 1 4 2 . 2 . . . 2 . 1 1 . 1 Traps | -11 -10 -10 -8 -8 -8 -7 -7 -7 -7 -6 -6 -6 -6 -6 -6 -6 -5 -5 ------- Run | Yrd Mat Sub Mat Gar Sto Fac Gar Fac Gar Fac Was Fac Gar Fac Low Low Fac Gar Traps Triggered 31 | . . 1 1 2 1 . 8 . 6 1 . . 4 . . . 4 3 Indirectly 2 | . . . . . . . 2 . . . . . . . . . . . Trap Hack Attempts . | . . . . . . . . . . . . . . . . . . . Triggered . | . . . . . . . . . . . . . . . . . . . Disarmed . | . . . . . . . . . . . . . . . . . . . Reprogrammed . | . . . . . . . . . . . . . . . . . . . Reused 4 | . . . 1 . . . 1 . . . . . . . . 2 . . Traps Extracted . | . . . . . . . . . . . . . . . . . . . Installed 17 | . . . 7 . . . 4 2 . . . . . . . 4 . . Triggered 4 | . . . 1 . . . 1 . . . . . . . . 2 . . Most Traps Carried 4 | . . 2 2 . . . 4 4 . . . . . . 4 4 . 2 Machines | -11 -10 -10 -8 -8 -8 -7 -7 -7 -7 -6 -6 -6 -6 -6 -6 -6 -5 -5 ---------- Run | Yrd Mat Sub Mat Gar Sto Fac Gar Fac Gar Fac Was Fac Gar Fac Low Low Fac Gar Machines Disabled 36 | . 1 4 2 2 2 2 11 1 3 . . 2 1 . . . 4 1 Max in Single Turn 3 | . 1 3 1 1 1 1 3 . 1 . . 1 1 . . . 2 1 Garrison Relay 7 | . . . . 1 . . 3 . 2 . . . . . . . . 1 Machines Repaired . | . . . . . . . . . . . . . . . . . . . Machines Dismantled . | . . . . . . . . . . . . . . . . . . . Machines Sabotaged . | . . . . . . . . . . . . . . . . . . . Overloaded Fab Kills . | . . . . . . . . . . . . . . . . . . . Hacking | -11 -10 -10 -8 -8 -8 -7 -7 -7 -7 -6 -6 -6 -6 -6 -6 -6 -5 -5 --------- Run | Yrd Mat Sub Mat Gar Sto Fac Gar Fac Gar Fac Was Fac Gar Fac Low Low Fac Gar Machines Accessed 52 | . 9 . 12 2 11 4 3 1 2 1 . 4 1 . . . 2 . Terminals 36 | . 7 . 9 2 9 1 3 . 2 . . 1 1 . . . 1 . Fabricators 2 | . . . . . . 1 . . . . . 1 . . . . . . Repair Stations 5 | . 1 . . . 2 1 . . . . . 1 . . . . . . Recycling Units 1 | . 1 . . . . . . . . . . . . . . . . . Scanalyzers 2 | . . . 2 . . . . . . . . . . . . . . . Garrison Access 6 | . . . 1 . . 1 . 1 . 1 . 1 . . . . 1 . Total Hacks 137 | . 32 . 43 5 25 7 8 1 3 1 . 6 2 . . . 4 . Successful 66 | . 14 . 27 1 8 4 3 1 1 1 . 2 . . . . 4 . Failed 70 | . 18 . 15 4 17 3 5 . 2 . . 4 2 . . . . . Catastrophic 12 | . 2 . 1 2 3 . 2 . 1 . . . 1 . . . . . Database Lockouts 1 | . . . 1 . . . . . . . . . . . . . . . Manual 81 | . 29 . 28 . 15 2 . . 2 . . 2 . . . . 3 . Terminals 101 | . 25 . 30 5 21 2 8 . 3 . . 2 2 . . . 3 . Fabricators 4 | . . . . . . 2 . . . . . 2 . . . . . . Repair Stations 11 | . 4 . . . 4 2 . . . . . 1 . . . . . . Recycling Units 3 | . 3 . . . . . . . . . . . . . . . . . Scanalyzers 10 | . . . 10 . . . . . . . . . . . . . . . Garrison Access 8 | . . . 3 . . 1 . 1 . 1 . 1 . . . . 1 . Terminal Hacks 18 | . 1 . 6 1 4 1 3 . 1 . . . . . . . 1 . Robot Analysis 4 | . 1 . 3 . . . . . . . . . . . . . . . Prototype ID Bank 3 | . . . 2 . 1 . . . . . . . . . . . . . Open Door 4 | . . . . . 2 . 1 . 1 . . . . . . . . . Open DSF 1 | . . . . . . 1 . . . . . . . . . . . . Emergency Access Points 1 | . . . . . . . 1 . . . . . . . . . . . Unreport Threat 1 | . . . . . 1 . . . . . . . . . . . . . Hauler Manifests 2 | . . . 1 . . . . . . . . . . . . . 1 . Garrison Registry 2 | . . . . 1 . . 1 . . . . . . . . . . . Fabricator Hacks . | . . . . . . . . . . . . . . . . . . . Repair Station Hacks 7 | . 4 . . . 2 1 . . . . . . . . . . . . Scan Component 4 | . 2 . . . 1 1 . . . . . . . . . . . . Repair 3 | . 2 . . . 1 . . . . . . . . . . . . . Recycling Unit Hacks . | . . . . . . . . . . . . . . . . . . . Scanalyzer 9 | . . . 9 . . . . . . . . . . . . . . . Insert Component 4 | . . . 4 . . . . . . . . . . . . . . . Analyze 2 | . . . 2 . . . . . . . . . . . . . . . Retrieve Study 3 | . . . 3 . . . . . . . . . . . . . . . Garrison Access Hacks 6 | . . . 1 . . 1 . 1 . 1 . 1 . . . . 1 . Unlock Access 6 | . . . 1 . . 1 . 1 . 1 . 1 . . . . 1 . Unauthorized Hacks 26 | . 9 . 11 . 2 1 . . . . . 1 . . . . 2 . Terminals 25 | . 9 . 11 . 2 . . . . . . 1 . . . . 2 . Botnet 13 | . 3 . 6 . 2 . . . . . . 1 . . . . 1 . Skim 12 | . 6 . 5 . . . . . . . . . . . . . 1 . Fabricators 1 | . . . . . . 1 . . . . . . . . . . . . Fabnet 1 | . . . . . . 1 . . . . . . . . . . . . Repair Stations . | . . . . . . . . . . . . . . . . . . . Recycling Units . | . . . . . . . . . . . . . . . . . . . Scanalyzers . | . . . . . . . . . . . . . . . . . . . Garrison Access . | . . . . . . . . . . . . . . . . . . . Data Cores Recovered 1 | . 1 . . . . . . . . . . . . . . . . . Used . | . . . . . . . . . . . . . . . . . . . Hacking Detections 42 | . 8 . 11 2 9 3 3 . 1 1 . 3 1 . . . . . Full Trace Events 1 | . 1 . . . . . . . . . . . . . . . . . Feedback Events . | . . . . . . . . . . . . . . . . . . . Feedback Blocked . | . . . . . . . . . . . . . . . . . . . Robot Schematics Acquired . | . . . . . . . . . . . . . . . . . . . Robots Built . | . . . . . . . . . . . . . . . . . . . Authchips . | . . . . . . . . . . . . . . . . . . . Time . | . . . . . . . . . . . . . . . . . . . Total Robot Build Rating . | . . . . . . . . . . . . . . . . . . . Part Schematics Acquired 2 | . . . 2 . . . . . . . . . . . . . . . Parts Built . | . . . . . . . . . . . . . . . . . . . Authchips . | . . . . . . . . . . . . . . . . . . . Time . | . . . . . . . . . . . . . . . . . . . Total Part Build Rating . | . . . . . . . . . . . . . . . . . . . Part Studies Acquired 3 | . . . 3 . . . . . . . . . . . . . . . Parts Repaired 3 | . 2 . . . 1 . . . . . . . . . . . . . Time 90 | . 52 . . . 38 . . . . . . . . . . . . . Parts Recycled . | . . . . . . . . . . . . . . . . . . . Recycled Matter . | . . . . . . . . . . . . . . . . . . . Retrieved Matter . | . . . . . . . . . . . . . . . . . . . Retrieved Components . | . . . . . . . . . . . . . . . . . . . Parts Scanalyzed 2 | . . . 2 . . . . . . . . . . . . . . . Part Schematics Acquired 2 | . . . 2 . . . . . . . . . . . . . . . Parts Damaged . | . . . . . . . . . . . . . . . . . . . Bothacking | -11 -10 -10 -8 -8 -8 -7 -7 -7 -7 -6 -6 -6 -6 -6 -6 -6 -5 -5 ------------ Run | Yrd Mat Sub Mat Gar Sto Fac Gar Fac Gar Fac Was Fac Gar Fac Low Low Fac Gar Used RIF Installer 5 | . . . . 1 . . 1 . 2 . . . 1 . . . . . Threat Obfuscator 2 | . . . . . . . . . 1 . . . 1 . . . . . Zone Cloak 1 | . . . . . . . 1 . . . . . . . . . . . Autooverride 1 | . . . . . . . . . 1 . . . . . . . . . Robots Hacked 11 | . . . . . . . 2 . 2 . 6 1 . . . . . . Non-combat 1 | . . . . . . . . . . . . 1 . . . . . . Combat 10 | . . . . . . . 2 . 2 . 6 . . . . . . . Robot Hacks Applied 11 | . . . . . . . 2 . 2 . 6 1 . . . . . . ignore_targets 6 | . . . . . . . . . . . 6 . . . . . . . formatsys_low 1 | . . . . . . . . . . . . 1 . . . . . . formatsys_high 4 | . . . . . . . 2 . 2 . . . . . . . . . Relay Couplers Released 29 | . . . . 3 . . 15 . 8 . . . . . . . . 3 Machine Destruction 29 | . . . . 3 . . 15 . 8 . . . . . . . . 3 Attached 6 | . . . . . . . 2 . 3 . 1 . . . . . . . Fabnet Peak Effective % 3 | . . . . . . . . . . 3 3 3 3 3 3 3 1 1 Robots Rewired 11 | . . . . . . . 6 . 2 . . 1 . . 2 . . . Allies Hacked 3 | . . . . . . . . . . . . . 3 . . . . . Hacks Repelled . | . . . . . . . . . . . . . . . . . . . Allies | -11 -10 -10 -8 -8 -8 -7 -7 -7 -7 -6 -6 -6 -6 -6 -6 -6 -5 -5 -------- Run | Yrd Mat Sub Mat Gar Sto Fac Gar Fac Gar Fac Was Fac Gar Fac Low Low Fac Gar Total Allies 17 | . . . . . . . 8 . 4 . . 2 1 . 2 . . . Largest Group 5 | . . . . . . . 5 5 5 2 1 2 2 . 2 2 . . Highest-Rated Group 130 | . . . . . . . 130 127 127 59 20 46 70 . 59 59 . . Highest-Rated Ally 47 | . . . . . . . 39 39 39 39 20 23 47 . 30 30 . . Total Orders 4 | . . . . . . . . . . . . 2 . . . . 2 . AID 1 | . . . . . . . . . . . . 1 . . . . . . DROP 1 | . . . . . . . . . . . . 1 . . . . . . EXPLORE 2 | . . . . . . . . . . . . . . . . . 2 . Ally Attacks 109 | . . . . . . . 19 42 38 . 2 . 3 . . 5 . . Total Damage 1969 | . . . . . . . 264 637 815 . 81 . 96 . . 76 . . Kills 15 | . . . . . . . 2 6 6 . . . 1 . . . . . Allies Corrupted 1 | . . . . . . . . . 1 . . . . . . . . . Allies Melted . | . . . . . . . . . . . . . . . . . . . X0-1V1 Amusement Gains 259 | . 9 14 54 20 15 24 35 . . . . . . . 15 2 42 29 Good Acts 128 | . . 23 12 8 12 8 8 1 15 . 4 6 9 1 4 5 5 7 Bad Acts 90 | . . 45 7 . . . 5 1 4 . 2 2 4 . 5 . 7 8 Intel | -11 -10 -10 -8 -8 -8 -7 -7 -7 -7 -6 -6 -6 -6 -6 -6 -6 -5 -5 ------- Run | Yrd Mat Sub Mat Gar Sto Fac Gar Fac Gar Fac Was Fac Gar Fac Low Low Fac Gar Active Infowar (turns) 7008 | 28 565 . 568 506 . 68 544 110 353 56 213 682 143 233 . 166 1176 1597 Sensors 298 | . . . 298 . . . . . . . . . . . . . . . IFF 494 | . . . . . . . . 1 301 . . . . . . 166 26 . Terrain 712 | . . . . . . . . . . . . . . . . 15 697 . Traps 457 | . . . 270 . . 68 . . . 56 . . 63 . . . . . Seismic 593 | 28 565 . . . . . . . . . . . . . . . . . Decoding 2677 | . . . . . . . . . 52 . 194 311 31 . . 13 479 1597 Triangulation 1028 | . . . . . . . 543 69 . . . 252 3 . . . . 161 Cloaking 1173 | . . . . 506 . . 62 109 . . 19 119 . . . . 250 108 Spoofing 233 | . . . . . . . . . . . . . . 233 . . . . Jamming 46 | . . . . . . . . . . . . . 46 . . . . . ECM 1 | . . . . . . . 1 . . . . . . . . . . . Robot Analysis Total 4 | . 1 . 3 . . . . . . . . . . . . . . . Derelict Logs Recovered 3 | . . 1 . . . . . . . . . . . . . 2 . . Drone Launches 7 | . . . . . . . . . 2 . . . . . . . 5 . Drone Recoveries 3 | . . . . . . . . . . . . . . . . . 3 . Decoded 0b10 Intel 76 | . . . . . . . . . . . 1 10 1 . . . 14 50 Traps 15 | . . . . . . . . . . . . . . . . . 2 13 Emergency Access 3 | . . . . . . . . . . . . . . . . . 3 . Items 39 | . . . . . . . . . . . . . . . . . 6 33 Machines 3 | . . . . . . . . . . . . . . . . . 2 1 Garrisons 1 | . . . . . . . . . . . . 1 . . . . . . Patrols 10 | . . . . . . . . . . . . 7 1 . . . . 2 Guards 3 | . . . . . . . . . . . . 2 . . . . 1 . Exits 2 | . . . . . . . . . . . 1 . . . . . . 1 Exploration | -11 -10 -10 -8 -8 -8 -7 -7 -7 -7 -6 -6 -6 -6 -6 -6 -6 -5 -5 ------------- Run | Yrd Mat Sub Mat Gar Sto Fac Gar Fac Gar Fac Was Fac Gar Fac Low Low Fac Gar Turns Passed 26724 | 125 2489 4048 3323 1100 2002 1080 2284 166 2301 244 561 1261 1296 233 964 253 1397 1597 Spaces Moved 8742 | 56 797 1287 1107 334 518 340 741 72 691 110 209 373 410 109 506 137 515 430 Core 9 | 4 . . . . . . . . 4 . . . . . . . . 1 Treads 7262 | 52 797 904 1107 334 511 94 734 72 459 . 33 373 410 109 506 137 515 115 Legs 1088 | . . . . . 7 246 7 . 228 110 176 . . . . . . 314 Wheels 383 | . . 383 . . . . . . . . . . . . . . . . Hover . | . . . . . . . . . . . . . . . . . . . Flight . | . . . . . . . . . . . . . . . . . . . Fastest Speed 50 | 50 160 135 219 221 229 202 160 208 208 209 209 240 160 150 150 152 160 162 Average Speed 241 | 152 275 282 240 231 277 229 226 208 245 209 213 278 237 193 151 153 202 252 Slowest Speed 2150 | 160 320 360 305 246 470 370 550 208 1700 209 240 320 320 246 152 240 260 2150 Overloaded Moves . | . . . . . . . . . . . . . . . . . . . Propulsion Burnouts . | . . . . . . . . . . . . . . . . . . . Robots Hopped . | . . . . . . . . . . . . . . . . . . . Potential Cave-ins . | . . . . . . . . . . . . . . . . . . . Cave-ins Triggered . | . . . . . . . . . . . . . . . . . . . Exploration Rate (%) 45 | 3 98 73 95 49 83 9 73 3 60 4 82 16 44 4 77 22 25 53 Regions Visited 18 Branch Regions 4 Pre-discovered Areas 3 | . . 2 1 . . . . . . . . . . . . . . . Known Exits Taken 9 | . 1 . 1 . 1 1 . 1 . . . 1 . . 1 1 1 . Unknown Exits Taken 3 | 1 . 1 . . . . . . . . . . . 1 . . . . Scrap Searched 13 | . . 12 . . . . . . . . . . . . 1 . . . Spaces Dug 52 | . . . 1 17 5 . . . 7 . . . 3 . . . 4 15 Terrain Destroyed 936 | . . 74 8 18 51 95 159 . 76 . 94 33 70 . 17 47 46 148 Melee 37 | . . . . 8 . . . . 7 . . . 3 . . . 4 15 Projectile 91 | . . 1 8 10 39 8 . . 7 . . . 3 . 7 2 2 4 AOE 804 | . . 73 . . 12 84 159 . 62 . 94 33 63 . 10 45 40 129 Terrain Rammed . | . . . . . . . . . . . . . . . . . . . Walls Destroyed . | . . . . . . . . . . . . . . . . . . . Machines Disabled . | . . . . . . . . . . . . . . . . . . . Actions | -11 -10 -10 -8 -8 -8 -7 -7 -7 -7 -6 -6 -6 -6 -6 -6 -6 -5 -5 --------- Run | Yrd Mat Sub Mat Gar Sto Fac Gar Fac Gar Fac Was Fac Gar Fac Low Low Fac Gar Total 12389 | 76 991 1577 1553 505 915 497 1078 90 1069 125 273 544 633 132 625 173 805 728 Wait 1027 | . 95 27 129 21 247 29 17 5 49 2 . 77 68 . 20 . 164 77 Move 8730 | 55 796 1286 1107 333 517 340 740 72 690 110 208 373 409 108 505 136 515 430 Hop . | . . . . . . . . . . . . . . . . . . . Pick Up 331 | 6 24 60 64 13 13 6 27 4 18 . 5 14 18 2 14 7 20 16 Fast Attach 106 | 7 3 6 8 . 3 4 5 . 20 5 2 5 9 . 5 . 13 11 Attach 107 | . 3 2 10 4 4 8 10 . 13 2 3 5 4 . 7 5 7 20 Detach 73 | . 2 2 7 3 5 3 6 . 11 2 1 4 9 . 2 1 6 9 Swap 123 | . 9 19 11 4 4 4 6 1 17 1 4 4 14 1 5 . 8 11 Drop 361 | . 8 91 56 11 11 5 28 6 23 3 8 16 23 2 15 11 23 21 Fire 939 | 8 50 71 136 53 94 73 36 . 145 . 22 41 63 . 29 9 41 68 Melee 346 | . . 13 . 58 15 7 114 . 26 . 20 . 14 . 15 . 8 56 Ram . | . . . . . . . . . . . . . . . . . . . Kick . | . . . . . . . . . . . . . . . . . . . Crush 9 | . 1 . 2 . . . . . 2 . . 4 . . . . . . Escape Stasis 35 | . . . . 4 2 . 11 . 10 . . . . . . . . 8 Rewire 114 | . . . . 1 . . 74 . 27 . . 1 2 . 8 . . 1 Trap 17 | . . . 7 . . . 4 2 . . . . . . . 4 . . Miscellaneous 71 | . . . 16 . . 18 . . 18 . . . . 19 . . . . Route ------- -11/Scrapyard -10/Materials (discovered 5 exits: [*Mat x3] / [*Min] / *Sub) -10/Subcaves (discovered 3 exits: *Mat x2 / *Rec) -8/Materials (discovered 5 exits: *Fac x3 / *Sto / Gar) -8/Garrison (discovered 3 exits: *Sto x3) -8/Storage (discovered 2 exits: *Fac / Rec) -7/Factory (discovered 6 exits: *Fac x3 / *Low x2 / Gar) -7/Garrison (discovered 3 exits: *Fac x3) -7/Factory -7/Garrison (discovered 3 exits: *Fac x2 / [*Fac]) -6/Factory -6/Waste -6/Factory -6/Garrison (discovered 2 exits: [*Fac x2]) -6/Factory -6/Lower Caves -6/Lower Caves -5/Factory (discovered 3 exits: Fac / [*Upp] / Gar) -5/Garrison (discovered 2 exits: *Fac x2) History --------- Turn | Location | Event 6 | -11/Scrapyard | Discovered new exit (range 16) 126 | -11/Scrapyard | Entered Materials 300 | -10/Materials | Build established: Mutant 556 | -10/Materials | Repaired Lgt. Treads 654 | -10/Materials | Discovered new exit (range 9) 926 | -10/Materials | Derelicts attacked the area 1058 | -10/Materials | Discovered new exit (range 4) 1442 | -10/Materials | Repaired Lgt. Treads 1546 | -10/Materials | Discovered new exit (range 8) 1671 | -10/Materials | Learned location of 1 exit from Recycling 1745 | -10/Materials | Learned Recycling recycling unit intel 1811 | -10/Materials | Learned 2 Storage zone layouts 1865 | -10/Materials | Learned 4 Subcaves zone layouts 1907 | -10/Materials | Learned Storage stockpile data 1922 | -10/Materials | Discovered new exit (range 16) 1939 | -10/Materials | Identified exit to Subcaves 1987 | -10/Materials | Learned location of 1 exit from Storage 2025 | -10/Materials | Learned 2 Storage zone layouts 2071 | -10/Materials | Learned Storage stockpile data 2608 | -10/Materials | Prayed at D.C.S.S. Altar Unit 2615 | -10/Materials | Entered Subcaves 4195 | -10/Subcaves | Shifting Twisted Machinery released Barrage Gun 4484 | -10/Subcaves | Learned location of Zion (-7) 4532 | -10/Subcaves | Core integrity fell below 50% 4546 | -10/Subcaves | Disturbed a concealed Subdweller 4723 | -10/Subcaves | Discovered new exit (range 15) 4804 | -10/Subcaves | Curiously followed by a Cobbler waking with a query about "LVR3C" 5370 | -10/Subcaves | Forcibly received Sfc. Transmogifier from X0-1V1 5821 | -10/Subcaves | Core integrity fell below 20% 6034 | -10/Subcaves | Shifting Twisted Machinery released Flamer 6070 | -10/Subcaves | Shifting Twisted Machinery released Sub. Monowheel 6309 | -10/Subcaves | Met a Zionite searching for "candidates" 6318 | -10/Subcaves | Discovered new exit (range 9) 6409 | -10/Subcaves | Shifting Twisted Machinery released Sub. Machine Gun 6429 | -10/Subcaves | Shifting Twisted Machinery released Battle Cannon 6445 | -10/Subcaves | Discovered new exit (range 16) 6663 | -10/Subcaves | Entered Materials 6663 | -8/Materials | Evolved 4 slots: Propulsion x1, Utility x3 7136 | -8/Materials | Destroyed 7 combat bots 7455 | -8/Materials | Destroyed 8 combat bots 8131 | -8/Materials | Learned location of 2 exits from Factory 8185 | -8/Materials | Learned location of 2 exits from Factory 8231 | -8/Materials | Learned 4 Recycling zone layouts 8268 | -8/Materials | Learned Storage trap positions 8316 | -8/Materials | Learned location of 1 exit from Extension 8332 | -8/Materials | Learned Storage emergency access door positions 8337 | -8/Materials | Build established: Derelict-Mutant 8356 | -8/Materials | Learned Factory recycling unit intel 8391 | -8/Materials | Learned Factory emergency access door positions 8717 | -8/Materials | Build established: Mutant 8782 | -8/Materials | Discovered new exit (range 9) 9153 | -8/Materials | Discovered new exit (range 16) 9515 | -8/Materials | Discovered new exit (range 15) 9898 | -8/Materials | Central database locked down 9967 | -8/Materials | Discovered new exit (range 12) 9986 | -8/Materials | Identified exit to Garrison 9986 | -8/Materials | Entered Garrison 10282 | -8/Garrison | Triggered checkpoint 10463 | -8/Garrison | Discovered new exit (range 10) 10630 | -8/Garrison | Triggered checkpoint 10805 | -8/Garrison | Garrison Relay disabled 10825 | -8/Garrison | Discovered new exit (range 76) 10825 | -8/Garrison | Discovered new exit (range 55) 10825 | -8/Garrison | Discovered new exit (range 13) 10918 | -8/Garrison | Triggered checkpoint 11064 | -8/Garrison | Installed Relay Interface Framework 11084 | -8/Garrison | Identified exit to Storage 11086 | -8/Garrison | Entered Storage 11087 | -8/Storage | Identified exit to Recycling 11088 | -8/Storage | Identified exit to Factory 11090 | -8/Storage | Loaded intel: 14 trap records 11510 | -8/Storage | Repaired Hvy. Assault Cannon 11896 | -8/Storage | Found Scimitar of Distortion 13088 | -8/Storage | Entered Factory 13088 | -7/Factory | Evolved 2 slots: Propulsion x1, Weapon x1 13089 | -7/Factory | Identified exit to Factory 13089 | -7/Factory | Identified exit to Lower Caves 13091 | -7/Factory | Loaded intel: 6 recycling unit locations 13170 | -7/Factory | Discovered exit to Lower Caves (range 6) 13583 | -7/Factory | Build established: Gunner 13603 | -7/Factory | Garrison activated, responded to threat 13724 | -7/Factory | Garrison activated, responded to threat 13861 | -7/Factory | Lost 4 parts (1p1n2w) 13985 | -7/Factory | Build established: Mutant 14168 | -7/Factory | Identified exit to Garrison 14168 | -7/Factory | Entered Garrison 14220 | -7/Garrison | H-XX Assembler disabled 14436 | -7/Garrison | Triggered checkpoint 14629 | -7/Garrison | Triggered checkpoint 14648 | -7/Garrison | Triggered checkpoint 15043 | -7/Garrison | Discovered new exit (range 10) 15234 | -7/Garrison | Garrison Relay disabled 15290 | -7/Garrison | System corruption reached 10% 15767 | -7/Garrison | Build established: Bothacker-Mutant 15821 | -7/Garrison | Discovered new exit (range 7) 15840 | -7/Garrison | Triggered checkpoint 15843 | -7/Garrison | Spotted B-75 Beast 15854 | -7/Garrison | Destroyed B-75 Beast 15908 | -7/Garrison | Lost 3 parts (2n1u) 16182 | -7/Garrison | Garrison Relay disabled 16200 | -7/Garrison | Expanded RIF knowledge: Zone Cloak 16390 | -7/Garrison | Discovered new exit (range 57) 16390 | -7/Garrison | Discovered new exit (range 26) 16390 | -7/Garrison | Discovered new exit (range 33) 16452 | -7/Garrison | Entered Factory 16452 | -7/Factory | Accompanied by 5 allies 16554 | -7/Factory | Garrison activated, responded to threat 16618 | -7/Factory | Identified exit to Garrison 16618 | -7/Factory | Entered Garrison 16618 | -7/Garrison | Accompanied by 5 allies 16730 | -7/Garrison | Lost 4 allies 16741 | -7/Garrison | Garrison Relay disabled 16909 | -7/Garrison | P-60 Hacker assimilated allied WZ-8P5(h) 16917 | -7/Garrison | Core integrity fell below 50% 17031 | -7/Garrison | Triggered checkpoint 17040 | -7/Garrison | Triggered checkpoint 17071 | -7/Garrison | Triggered checkpoint 17130 | -7/Garrison | Lost 4 parts (2n2u) 17207 | -7/Garrison | Build established: Bothacker-Tank 17433 | -7/Garrison | Expanded RIF knowledge: Threat Obfuscation 17452 | -7/Garrison | Triggered checkpoint 17504 | -7/Garrison | Discovered exit to Factory (range 13) 17776 | -7/Garrison | Triggered checkpoint 17794 | -7/Garrison | Garrison Relay disabled 18141 | -7/Garrison | Discovered exit to Factory (range 13) 18164 | -7/Garrison | Triggered checkpoint 18201 | -7/Garrison | Discovered new exit (range 5) 18286 | -7/Garrison | Lost 11 parts (1p3n3u4w) 18665 | -7/Garrison | Expanded RIF knowledge: Autooverride 18716 | -7/Garrison | Build established: Bothacker-Mutant 18919 | -7/Garrison | Entered Factory 18919 | -6/Factory | Accompanied by 2 allies 18919 | -6/Factory | Evolved 2 slots: Utility x2 19140 | -6/Factory | Identified exit to Garrison 19163 | -6/Factory | Sucked down chute 19163 | -6/Factory | Entered Waste 19168 | -6/Waste | 1 allies followed down the chute 19178 | -6/Waste | EMP discharged 19184 | -6/Waste | Spotted C-40 Crusher 19215 | -6/Waste | Spotted C-40 Crusher 19236 | -6/Waste | Spotted C-40 Crusher 19244 | -6/Waste | Spotted C-40 Crusher 19253 | -6/Waste | Spotted C-40 Crusher 19269 | -6/Waste | Spotted C-40 Crusher 19278 | -6/Waste | EMP discharged 19278 | -6/Waste | System corruption reached 10% 19344 | -6/Waste | Identified exit to Factory 19378 | -6/Waste | EMP discharged 19409 | -6/Waste | Attached CPS modules to C-40 Crusher 19411 | -6/Waste | Attached CPS modules to C-40 Crusher 19478 | -6/Waste | EMP discharged 19478 | -6/Waste | System corruption reached 30% 19521 | -6/Waste | Destroyed C-40 Crusher 19566 | -6/Waste | Destroyed C-40 Crusher 19578 | -6/Waste | EMP discharged 19592 | -6/Waste | Destroyed C-40 Crusher 19614 | -6/Waste | Destroyed C-40 Crusher 19678 | -6/Waste | EMP discharged 19724 | -6/Waste | Entered Factory 20337 | -6/Factory | Build established: Bothacker-Tank 20985 | -6/Factory | Identified exit to Garrison 20985 | -6/Factory | Entered Garrison 20985 | -6/Garrison | Warlord forces raided the area 20985 | -6/Garrison | Accompanied by 2 allies 21089 | -6/Garrison | Triggered checkpoint 21096 | -6/Garrison | Triggered checkpoint 21114 | -6/Garrison | P-60 Hacker assimilated allied Conveyor 5a 21161 | -6/Garrison | Lost 3 parts (3w) 21267 | -6/Garrison | Triggered checkpoint 21291 | -6/Garrison | Warlord forces retreated 21299 | -6/Garrison | Triggered checkpoint 21411 | -6/Garrison | Build established: Mutant 21581 | -6/Garrison | Discovered new exit (range 8) 21953 | -6/Garrison | Expanded RIF knowledge: Threat Obfuscation 21995 | -6/Garrison | Build established: Tank 22041 | -6/Garrison | Triggered checkpoint 22143 | -6/Garrison | Discovered new exit (range 10) 22281 | -6/Garrison | Entered Factory 22387 | -6/Factory | Build established: Mutant 22498 | -6/Factory | Discovered new exit (range 10) 22514 | -6/Factory | Entered Lower Caves 22882 | -6/Lower Caves | Build established: Tank 22936 | -6/Lower Caves | Attracted the attention of an 0b10 outpost 23006 | -6/Lower Caves | Lost 3 parts (1u2w) 23033 | -6/Lower Caves | Destroyed 7 combat bots 23125 | -6/Lower Caves | Encountered a Warlord checkpoint 23228 | -6/Lower Caves | Build established: Mutant 23469 | -6/Lower Caves | Discovered new exit (range 7) 23477 | -6/Lower Caves | Identified exit to Lower Caves 23478 | -6/Lower Caves | Entered another Lower Caves area 23478 | -6/Lower Caves | Accompanied by 2 allies 23488 | -6/Lower Caves | Spotted B-75 Beast 23518 | -6/Lower Caves | Encountered a Warlord checkpoint 23562 | -6/Lower Caves | Destroyed B-75 Beast 23660 | -6/Lower Caves | Identified exit to Factory 23671 | -6/Lower Caves | Build established: Tank 23712 | -6/Lower Caves | Learned location of 1 exit from Factory 23731 | -6/Lower Caves | Entered Factory 23731 | -5/Factory | Evolved 2 slots: Power x1, Weapon x1 23732 | -5/Factory | Identified exit to Factory 23769 | -5/Factory | Discovered new exit (range 39) 24727 | -5/Factory | Found Scimitar of Distortion 25027 | -5/Factory | Build established: Derelict-Gladiator 25128 | -5/Factory | Identified exit to Garrison 25128 | -5/Factory | Entered Garrison 25217 | -5/Garrison | Triggered checkpoint 25330 | -5/Garrison | Triggered checkpoint 25390 | -5/Garrison | Triggered checkpoint 25408 | -5/Garrison | Core integrity fell below 50% 25421 | -5/Garrison | System corruption reached 10% 25448 | -5/Garrison | Lost 7 parts (2p3n1u1w) 25566 | -5/Garrison | Core integrity fell below 20% 25584 | -5/Garrison | Lost 11 parts (2p3n3u3w) 25698 | -5/Garrison | Identified exit to Factory 25940 | -5/Garrison | Build established: Scavenger-Gunner 26170 | -5/Garrison | Triggered checkpoint 26195 | -5/Garrison | Discovered exit to Factory (range 13) 26316 | -5/Garrison | Triggered checkpoint 26366 | -5/Garrison | Garrison Relay disabled 26530 | -5/Garrison | Triggered checkpoint 26582 | -5/Garrison | Build established: Gunner 26725 | -5/Garrison | Destroyed by Y-64 Sentinel with Wave Gun Last Messages --------------- Compressor. 26696_ Slug penetrates Wall. 26696_ Y-64 Sentinel destroyed. 26697_ Extracted 19 matter. 26698_ Penetrated by Slug. 26700_ Y-64 Sentinel destroyed. 26701_ Extracted 19 matter. 26703_ Dropped Fusion Bomb Trap. 26705_ Acquired Imp. Hacking Suite. 26706_ Dropped Fusion Bomb Trap. 26707_ Dropped Drone Bay. 26707_ Drone Bay crushed and broken. 26715_ Y-64 Sentinel suffers critical hit (Blast). 26716_ X0-1V1 smiles upon you. (Received Rnf. Deuterium Engine x2) 26716_ Penetrated by Slug. 26718_ System corrupted: Substantial component data lost. 26718_ Y-64 Sentinel destroyed. 26723_ >> DECODED: Adv. Heat Sink location. 26723_ Acquired 37 matter. 26725_ X0-1V1 guffaws! Map ----- +----------------------------------------------------+ | ??????????????????????????????????????? | | ??????????????????????????????????????? | | ??????????????????????????????????????? | | ??????????????????????????????????????? | | ??????????????????????????????????????? | | ??????????????????????????????????????? | | ??????????????????????????????????????? | | ??????????????????????????????????????? | | ??????????????????????????????????????? | | ??????????????????????????????????????? | | ??????????????????????????????????????? | | ??????????????????????????????????????? | | ???????????????????????????????? #??? | | ???????????????????????????????? #??? | | ???????????????????????????????? "??? | | ???????????????????????????????? "??? | | ???????????????????????????????? "??? | | ???????????????????????????????# #??? | | ???????????????????????????????# #??? | | ???????????????????????????????# #??? | | ???????????????????????????????# #??? | | ???????????????????????????????# #??? | | ???????????????????????????????# #??? | | ???????????####????????????????# #??? | | ??????????##!!################## #??? | | ??????????#!!%@%%%!! ^ #??? | | ??????????#!&/##=%YY ^^#??? | | ??????????##!!####### ######### ^ #??? | | ???????????#!/#?????# #???????# #??? | | ???????????##&#?????" #???????# #### | | ????????????###?????" ???????# " | | ????????????????????" "??????# #### | | ????????????????????" "#?????# #??# | | ????????????????????" #"#?????# #### | | ????????????????????# ###?????# | | ????????????????????####???????# | | ???????????????????????????????# | | ???????????????????????????????######## | | ??????????????????????????????????????? | | ??????????????????????????????????????? | | ??????????????????????????????????????? | | ??????????????????????????????????????? | | ??????????????????????????????????????? | | ????????????????????????!!????????????? | | ??????????????????????????^???????????? | | ??????????????????????!!!!????????????? | | ??????????????????????????????????????? | | ??????????????????????????????????????? | | ??????????????????????????????????????? | | ??????????????????????????????????????? | +----------------------------------------------------+ Best States ------------- Heat Dissipation 150 Energy Generation 37 Energy Capacity 1140 Matter Stores 325 Matter Capacity 600 Sight Range 16 Robot Scan Range 15 Terrain Scan Range 24 Terrain Scan Density 210 Jamming Range 14 Cloak Strength 3 Additional Mass Support 12 Base Temperature (-) 150 EM Shielding 3 Armor Coverage 825 Resistance: KI 30 Resistance: TH 15 Resistance: EX 50 Power Shielding 66 Propulsion Shielding 90 Utility Shielding 90 Weapon Shielding 90 Point Defense Rating 80 Weapon Cycling 15 Evasion (%) 40 Targeting Accuracy 20 Melee Accuracy 8 Target Analysis 6 Core Analysis 6 Armor Integrity Analysis 30 Recoil Reduction 9 Matter Filtering 30 Energy Filtering 50 Particle Charging 25 Kinecelleration 40 Salvage Targeting 3 Defensive Hacking 11 Relay Coupler Types 1 Relay Coupler Value 36 Item Schematics ----------------- Imp. Medium Armor Plating | -8/Materials | Scanalyzed Graphene Brace | -8/Materials | Scanalyzed Robot Schematics ------------------ None Fabricated ------------ Nothing Repaired ---------- Lgt. Treads | 52% | -10/Materials Lgt. Treads | 20% | -10/Materials Hvy. Assault Cannon | 57% | -8/Storage Studied --------- Arm. Treads | -8/Materials | Hacked Adv. Treads | -8/Materials | Hacked Lgt. Treads | -8/Materials | Hacked Alien Tech Used ----------------- None Achievements -------------- Assassin Decoder Ring My Bad Overkill Safety First Taming Of The Crushers Challenges ------------ None Game ------ Seed VoltaicFluxPurifier Manual? 0 Play Time 05:09:16 Cumulative 126.1 hours Start 2026.06.25 @ 19:24:55 End 2026.06.27 @ 00:23:33 Sessions 2 Manual Loads 0 Difficulty Rogue Special Mode None Game No. 148 Rogue 148 Adventurer 0 Explorer 0 Win Type - Total 0 Types 0/0/0/0/0/0/0/0/0/0 Lore% 53 Gallery% 54 Achievement% 41 Wizard Run 0 Options --------- Layout 0 ASCII 0 Keyboard 0 Movement Mouse Keybinds 1 Fullscreen 2 Font 24/X11 Map View 76x50 Zoom Use 16% Tactical HUD 1 Map Filters NONE Filters NONE Steam 1 RUN: 0458abb6-acdf-426d-b016-ca20860a6825